Cogmind - Beta 11 X7 @@@ ROGUE MODE // 2021.10.08 @ 22:51:40 Player: weirdfoe Result: Self-destructed Performance ------------- Evolutions (3) 1500 Regions Visited (4) 800 Robots Destroyed (44) 220 Value Destroyed (1677) 1677 Prototype IDs (1) 20 Alien Tech Used (0) 0 Bonus (0) 0 TOTAL SCORE: 4217 Bonus ------- None Cogmind --------- Core Integrity 553/700 Matter 141/300 Energy 44/160 System Corruption 0% Temperature Cool (0) Movement Walking (105) Location -7/Factory Parts ------- > --- POWER (1) -------- Light Nuclear Core > --- PROPULSION (4) --- Aluminum Leg Carbon-fiber Leg VSS Leg VSS Leg > --- UTILITY (5) ------ Heat Sink Improved Heat Sink Terrain Scan Processor Improved Power Shielding > --- WEAPON (3) ------- Precision Assault Rifle Precision Assault Rifle Assault Cannon > --- INVENTORY (5) ---- Improved Ion Engine Particle Gun Gauss Rifle Precision Assault Rifle Assault Cannon Peak State ------------ > --- POWER ------------ Light Nuclear Core > --- PROPULSION ------- Aluminum Leg Carbon-fiber Leg VSS Leg VSS Leg > --- UTILITY ---------- Heat Sink Medium Storage Unit Terrain Scan Processor Improved Power Shielding Light Armor Plating > --- WEAPON ----------- Gauss Rifle Precision Assault Rifle Precision Assault Rifle > --- INVENTORY -------- Improved Ion Engine Compact Matter Pod Improved Propulsion Shielding Particle Gun Spread Laser Precision Assault Rifle Assault Cannon Assault Cannon [Rating: 37] Favorites ----------- Power Improved Ion Engine Engine Improved Ion Engine Power Core Light Nuclear Core Propulsion VSS Leg Leg VSS Leg Wheel Wheel Utility Medium Storage Unit Device Heat Sink Storage Medium Storage Unit Processor Salvage Targeting Computer Hackware Hacking Suite Protection Light Armor Plating Weapon Precision Assault Rifle Energy Gun Particle Gun Ballistic Gun Precision Assault Rifle Ballistic Cannon Assault Cannon Launcher Grenade Launcher Build | -11 -10 -9 -8 -7 ------- Run | Scr Mat Mat Mat Fac Slots Evolved 6 | . . 2 2 2 Power . | . . . . . Propulsion 2 | . . . . 2 Utility 3 | . . 2 1 . Weapon 1 | . . . 1 . Parts Attached 69 | 6 4 29 22 8 Power 6 | 1 1 2 1 1 Engine 5 | 1 1 2 1 . Core 1 | . . . . 1 Reactor . | . . . . . Propulsion 22 | 2 2 12 4 2 Treads . | . . . . . Leg 20 | . 2 12 4 2 Wheel 2 | 2 . . . . Hover . | . . . . . Flight . | . . . . . Utility 20 | 1 1 8 8 2 Device 7 | . . 2 3 2 Storage 3 | 1 . 1 1 . Processor 3 | . . 2 1 . Hackware 1 | . 1 . . . Protection 6 | . . 3 3 . Artifact . | . . . . . Weapon 21 | 2 . 7 9 3 Energy Gun 5 | 1 . . 3 1 Energy Cannon . | . . . . . Ballistic Gun 13 | 1 . 7 4 1 Ballistic Cannon 2 | . . . 1 1 Launcher 1 | . . . 1 . Special Weapon . | . . . . . Impact Weapon . | . . . . . Slashing Weapon . | . . . . . Piercing Weapon . | . . . . . Special Melee Weapon . | . . . . . Unidentified Prototypes 1 | . . . 1 . Parts Lost 10 | . . 1 7 2 Power . | . . . . . Propulsion . | . . . . . Utility 8 | . . 1 5 2 Weapon 2 | . . . 2 . Highest Loss Streak 5 | . . 1 5 1 Average Slot Usage (%) 97 | . 89 98 95 99 Engine 7 | . 14 11 9 . Core 1 | . . . . 6 Leg 22 | . 12 22 17 30 Device 9 | . . 10 12 7 Storage 9 | . 14 11 9 6 Processor 8 | . . 9 9 7 Protection 11 | . . 10 10 14 Energy Gun 6 | . 14 . 14 3 Ballistic Gun 16 | . 14 21 8 18 Naked Turns . | . . . . . Heaviest Build 34 | 10 12 28 34 34 Greatest Support 49 | 20 20 24 25 49 Greatest Overweight (x) 9 | . 1 1 9 . Average Overweight (x) . | . . . 1 . Largest Inventory Capacity 10 | 8 8 10 10 10 Average Capacity 9 | 6 8 9 9 9 Most Carried 10 | 4 7 10 10 10 Average Carried 8 | 2 6 8 9 8 Final Capacity 10 | 8 8 10 10 5 Final Carried 10 | 4 7 10 10 5 Class Distribution -------------------- 46% | Scavenger-Mutant 25% | Tank 12% | Scavenger-Skirmisher 9% | Mutant 4% | Scavenger-Tank Dominant Class ---------------- Scavenger-Mutant | -10/Materials Scavenger-Mutant | -9/Materials Scavenger-Skirmisher | -8/Materials Tank | -7/Factory Resources | -11 -10 -9 -8 -7 ----------- Run | Scr Mat Mat Mat Fac Matter Collected 1539 | 216 57 591 490 185 Remotely . | . . . . . Salvage Created 1722 | . 57 606 646 413 Parts 98 | . 7 37 34 20 Haulers Intercepted . | . . . . . Recyclers Shooed . | . . . . . Parts Field Recycled . | . . . . . Retrieved Matter . | . . . . . Parts Self-Destructed . | . . . . . Prevented . | . . . . . Kills | -11 -10 -9 -8 -7 ------- Run | Scr Mat Mat Mat Fac Combat Hostiles Destroyed 37 | . 1 16 13 7 Guns 34 | . 1 16 11 6 Cannons 1 | . . . . 1 AOE 2 | . . . 2 . Classes Destroyed 9 | . 2 5 . 2 Builder 3 | . . 1 2 . Recycler 1 | . . . . 1 Operator 2 | . 1 . 1 . Watcher 1 | . . 1 . . Grunt 27 | . 1 11 11 4 Brawler 1 | . . 1 . . Duelist 1 | . . 1 . . Sentry 6 | . . 3 2 1 Programmer 2 | . . . . 2 Best Kill Streak 8 | . 1 4 8 3 Combat Bots Only 6 | . 1 3 6 2 Max Kills in Single Turn 2 | . 1 2 2 1 Gunslinging . | . . . . . Exploded 2 | . . . 2 . Melee . | . . . . . Uniques/NPCs Destroyed . | . . . . . Combat | -11 -10 -9 -8 -7 -------- Run | Scr Mat Mat Mat Fac Damage Taken 2895 | 3 55 939 1110 788 Core 421 | . . 157 117 147 Absorbed by Shields . | . . . . . Core Remaining (%) 84 | 100 100 60 78 . Volleys Fired 126 | . 5 53 49 19 Largest 3 | . 2 2 3 3 Hottest 195 | . 60 60 195 121 Shots Fired 272 | . 10 106 99 57 Gun 263 | . 10 106 96 51 Cannon 6 | . . . . 6 Launcher 3 | . . . 3 . Special . | . . . . . Kinetic 225 | . 5 99 77 44 Thermal 44 | . 5 7 19 13 Explosive 3 | . . . 3 . Electromagnetic . | . . . . . Robot Hit Streak 15 | . 3 10 13 15 Robot Miss Streak 7 | . 1 7 4 3 Penetration Max . | . . . . . Secondary Targets 4 | . . 1 3 . Max Gunslinging Chain 1 | . . 1 1 . Shots Hit Robots 204 | . 6 76 73 49 Core Hits 106 | 1 4 31 38 32 Critical Kills 1 | . . 1 . . Critical Parts Destroyed 1 | . . . 1 . Critical Strikes 2 | . . 1 1 . Destroy 2 | . . 1 1 . Melee Attacks . | . . . . . Impact . | . . . . . Slashing . | . . . . . Piercing . | . . . . . Sneak Attacks . | . . . . . Combat Hostiles . | . . . . . Follow-up Attacks . | . . . . . Damage Inflicted 3773 | 7 63 1340 1422 941 Guns 3359 | . 63 1334 1154 808 Cannons 133 | . . . . 133 Explosions 266 | . . . 266 . Melee . | . . . . . Ramming 15 | 7 . 6 2 . Kinetic 2995 | . 19 1269 967 740 Thermal 497 | . 44 65 187 201 Explosive 266 | . . . 266 . Electromagnetic . | . . . . . Impact . | . . . . . Slashing . | . . . . . Piercing . | . . . . . Highest Corruption . | . . . . . Average Corruption . | . . . . . Corruption Purged . | . . . . . Overload Shots . | . . . . . Overflow Damage . | . . . . . Projectiles . | . . . . . Explosions . | . . . . . Melee . | . . . . . Knockbacks . | . . . . . Impact . | . . . . . Kinetic . | . . . . . Secondary . | . . . . . Self-Inflicted Damage 19 | 3 . . 16 . Shots 1 | . . . 1 . Rammed 2 | 2 . . . . Targets Rammed 5 | 2 . 2 1 . Kicked 3 | . . 2 1 . Crushed . | . . . . . Highest Temperature 605 | . 58 6 605 119 Average Temperature 106 | . 30 4 183 35 Received Heat Transfer 1314 | . 24 291 639 360 Effects 7 | . . . 7 . Shutdowns 1 | . . . 1 . Matter Decay 1 | . . . 1 . Damage (major) 5 | . . . 5 . Siege Activations . | . . . . . Robots Corrupted . | . . . . . Combat Hostiles . | . . . . . Parts Fried . | . . . . . Impact Corruptions . | . . . . . Robots Melted . | . . . . . Combat Hostiles . | . . . . . Parts Melted . | . . . . . Heat Transferred 878 | . 100 150 393 235 Parts Sabotaged . | . . . . . Parts Stolen . | . . . . . Parts Stripped . | . . . . . Power Chain Reactions . | . . . . . Missiles Intercepted . | . . . . . Alert | -11 -10 -9 -8 -7 ------- Run | Scr Mat Mat Mat Fac Peak Influence 391 | . 65 359 391 181 Initial 99 | . . 27 99 44 Average 151 | . 32 165 218 86 Maximum Alert Level 1 | . . 1 1 . Low Security (%) 61 | 100 100 53 28 100 Level 1 38 | . . 46 71 . Level 2 . | . . . . . Level 3 . | . . . . . Level 4 . | . . . . . Level 5 . | . . . . . High Security . | . . . . . Max Security . | . . . . . Squads Dispatched 11 | . 1 2 3 5 Investigation 1 | . . 1 . . Extermination 2 | . . . . 2 Reinforcement 8 | . 1 1 3 3 Assault . | . . . . . Garrison . | . . . . . Intercept . | . . . . . Construction Impeded 1 | . . . 1 . Haulers Reinforced 1 | . . . . 1 Active Scanning Responses . | . . . . . Cargo Convoy Interrupts . | . . . . . Stealth | -11 -10 -9 -8 -7 --------- Run | Scr Mat Mat Mat Fac Distress Signals 2 | . . 1 . 1 Communications Jammed . | . . . . . Distress Signals . | . . . . . Times Spotted 61 | . 7 22 17 15 Peak Tracking Total 7 | . 4 4 6 7 Tactical Retreats 2 | . . . 1 1 Traps | -11 -10 -9 -8 -7 ------- Run | Scr Mat Mat Mat Fac Traps Triggered 2 | . . 1 1 . Indirectly . | . . . . . Trap Hack Attempts . | . . . . . Triggered . | . . . . . Disarmed . | . . . . . Reprogrammed . | . . . . . Reused . | . . . . . Traps Extracted . | . . . . . Installed . | . . . . . Triggered . | . . . . . Machines | -11 -10 -9 -8 -7 ---------- Run | Scr Mat Mat Mat Fac Machines Disabled . | . . . . . Max in Single Turn . | . . . . . Garrison Access 1 | . . . . 1 Machines Sabotaged . | . . . . . Garrisons Compromised . | . . . . . Overloaded Fab Kills . | . . . . . Fab Network Shutdowns . | . . . . . Hacking | -11 -10 -9 -8 -7 --------- Run | Scr Mat Mat Mat Fac Machines Accessed 6 | . . 4 1 1 Terminals 2 | . . 2 . . Fabricators . | . . . . . Repair Stations 3 | . . 2 1 . Recycling Units . | . . . . . Scanalyzers . | . . . . . Garrison Access 1 | . . . . 1 Total Hacks 16 | . . 12 3 1 Successful 5 | . . 3 1 1 Failed 11 | . . 9 2 . Catastrophic 1 | . . 1 . . Database Lockouts . | . . . . . Manual 6 | . . 6 . . Terminals 7 | . . 7 . . Fabricators . | . . . . . Repair Stations 8 | . . 5 3 . Recycling Units . | . . . . . Scanalyzers . | . . . . . Garrison Access 1 | . . . . 1 Terminal Hacks 1 | . . 1 . . Record 1 | . . 1 . . Fabricator Hacks . | . . . . . Repair Station Hacks 3 | . . 2 1 . Scan Component 3 | . . 2 1 . Recycling Unit Hacks . | . . . . . Scanalyzer . | . . . . . Garrison Access Hacks 1 | . . . . 1 Seal Access 1 | . . . . 1 Unauthorized Hacks . | . . . . . Terminals . | . . . . . Fabricators . | . . . . . Repair Stations . | . . . . . Recycling Units . | . . . . . Scanalyzers . | . . . . . Garrison Access . | . . . . . Data Cores Recovered . | . . . . . Used . | . . . . . Hacking Detections 4 | . . 3 1 . Full Trace Events 3 | . . 2 1 . Feedback Events . | . . . . . Feedback Blocked . | . . . . . Robot Schematics Acquired . | . . . . . Robots Built . | . . . . . Matter . | . . . . . Time . | . . . . . Total Robot Build Rating . | . . . . . Part Schematics Acquired . | . . . . . Parts Built . | . . . . . Matter . | . . . . . Time . | . . . . . Total Part Build Rating . | . . . . . Parts Repaired . | . . . . . Time . | . . . . . Parts Recycled . | . . . . . Recycled Matter . | . . . . . Retrieved Matter . | . . . . . Retrieved Components . | . . . . . Parts Scanalyzed . | . . . . . Part Schematics Acquired . | . . . . . Parts Damaged . | . . . . . Bothacking | -11 -10 -9 -8 -7 ------------ Run | Scr Mat Mat Mat Fac Used RIF Installer . | . . . . . Robots Hacked . | . . . . . Non-combat . | . . . . . Combat . | . . . . . Robot Hacks Applied . | . . . . . Relay Couplers Released . | . . . . . Robots Rewired . | . . . . . Allies Hacked . | . . . . . Hacks Repelled . | . . . . . Allies | -11 -10 -9 -8 -7 -------- Run | Scr Mat Mat Mat Fac Total Allies . | . . . . . Largest Group . | . . . . . Highest-Rated Group . | . . . . . Highest-Rated Ally . | . . . . . Total Orders . | . . . . . Ally Attacks . | . . . . . Total Damage . | . . . . . Kills . | . . . . . Allies Corrupted . | . . . . . Allies Melted . | . . . . . Intel | -11 -10 -9 -8 -7 ------- Run | Scr Mat Mat Mat Fac Robot Analysis Total . | . . . . . Derelict Logs Recovered . | . . . . . Drone Launches . | . . . . . Drone Recoveries . | . . . . . Exploration | -11 -10 -9 -8 -7 ------------- Run | Scr Mat Mat Mat Fac Turns Passed 2937 | 48 138 1119 856 776 Spaces Moved 1289 | 39 104 490 275 381 Core 4 | 2 . . 2 . Treads . | . . . . . Legs 1192 | . 48 490 273 381 Wheels 93 | 37 56 . . . Hover . | . . . . . Flight . | . . . . . Fastest Speed 50 | 50 80 90 190 105 Average Speed 148 | 78 99 172 193 105 Slowest Speed 500 | 80 200 200 500 105 Overloaded Moves . | . . . . . Propulsion Burnouts . | . . . . . Robots Hopped . | . . . . . Cave-ins Triggered . | . . . . . Exploration Rate (%) 20 | 4 23 41 22 14 Regions Visited 4 Branch Regions . Pre-discovered Areas . | . . . . . Known Exits Taken . | . . . . . Unknown Exits Taken 4 | 1 1 1 1 . Scrap Searched . | . . . . . Spaces Dug . | . . . . . Terrain Destroyed 23 | . . . 23 . Melee . | . . . . . Projectile . | . . . . . AOE 23 | . . . 23 . Terrain Rammed . | . . . . . Walls Destroyed . | . . . . . Machines Disabled . | . . . . . Actions | -11 -10 -9 -8 -7 --------- Run | Scr Mat Mat Mat Fac Total 2064 | 53 129 668 502 712 Wait 498 | 3 13 50 131 301 Move 1285 | 38 103 489 274 381 Hop . | . . . . . Pick Up 32 | 4 2 13 12 1 Fast Attach 34 | 6 3 8 14 3 Attach 10 | . . 3 5 2 Detach 7 | . . 3 4 . Swap 25 | . 1 18 3 3 Drop 42 | . 2 29 9 2 Fire 126 | . 5 53 49 19 Melee . | . . . . . Ram 2 | 2 . . . . Kick 3 | . . 2 1 . Crush . | . . . . . Escape Stasis . | . . . . . Rewire . | . . . . . Trap . | . . . . . Miscellaneous . | . . . . . Route ------- -11/Scrapyard -10/Materials -9/Materials -8/Materials -7/Factory History --------- Turn | Location | Event 28 | -11/Scrapyard | Discovered new exit (range 15) 49 | -11/Scrapyard | Entered Materials 185 | -10/Materials | Discovered new exit (range 3) 187 | -10/Materials | Entered another Materials area 187 | -9/Materials | Evolved 2 slots: Utility x2 408 | -9/Materials | Build established: Scavenger-Mutant 1301 | -9/Materials | Discovered new exit (range 4) 1306 | -9/Materials | Entered another Materials area 1306 | -8/Materials | Evolved 2 slots: Utility x1, Weapon x1 1633 | -8/Materials | Lost 5 parts (3u2w) 1944 | -8/Materials | Build established: Scavenger-Skirmisher 2156 | -8/Materials | Discovered new exit (range 4) 2162 | -8/Materials | Entered Factory 2162 | -7/Factory | Evolved 2 slots: Propulsion x2 2573 | -7/Factory | Build established: Tank 2938 | -7/Factory | Self-destructed Last Messages --------------- 02812_ ALERT: Rogue bot located, Programmers report to Factory Zone 9D. 02842_ Med. Storage Unit destroyed. 02844_ G-47 Trooper destroyed. 02848_ Dropped Spread Laser. 02849_ Acquired Assault Cannon. 02851_ Acquired Heat Sink. 02852_ R-06 Scavenger collects Com. Matter Pod. 02856_ R-06 Scavenger destroyed. 02856_ A-02 Transporter calls for reinforcements. 02856_ ALERT: Hostile activity reported, dispatching reinforcements to area. 02860_ Acquired 84 matter. 02862_ Acquired 5 matter. 02875_ P-60 Hacker destroyed. 02884_ K-01 Serf collects debris. 02894_ Lgt. Armor Plating destroyed. 02898_ G-47 Trooper destroyed. 02900_ Critical hit (Burn: +37). 02902_ K-01 Serf collects debris. 02909_ ALERT: Cargo convoy en route, clear transfer corridor. Map ----- +----------------------------------------------------+ | ??????????????????????????????? | | ??????????????????????????????? | | ??????????????????????????????? | | ??????????????????????????????? | | ??????????????????????????????? | | ??????????????????????????????? | | ??????????????????????????????? | | ??????????????????????????????? | | ??????????????????????????????? | | ??????????????????????????????? | | ??????????????????????????????? | | ??????????????????????????????? | | ??????????????????????????????? | | ??????????????????????????????? | | ??????????????????????????????? | | ??????????????????????????????? | | ????????????????????? ??????? | | ????????????????????# #?????? | | ???###############??# #?????? | | ???# ! ???# #?????? | | ???# /!! ""???# %#?????? | | ???# /!! ] ""???# ####### | | ???# /! """??# ! | | ???# """??+ %% | | ???# """??# !!! """ | | ???# @ """???# ^!!! """ | | ???# ] ## !! """ | | ???# ## ^ | | ???#+################# | | ???# #?????????# | | ???# ########### | | ???# | | ???# ##+######### | | ???# """ """ # ???????? | | ???# """ """ # ???????? | | ???# """ """ # ] ??????? | | ???# # ??????? | | ???# # """ ?????? | | ???# "" # """ ?????? | | ???# "F [[[ # """ "????? | | ???# "" [[[ # ????? | | ???# "" [[ #"??? ""???? | | ???# #####"?????"???? | | ???# #???#"?????????? | | ????+## #??????????????? | | ???????? ???????????????? | | ???????? ???????????##### | | ??????????? ???????????# | | ??????????????????????????# """ | | ??????????????????????????# """ | +----------------------------------------------------+ Best States ------------- Heat Dissipation 58 Energy Generation 14 Energy Capacity 265 Matter Stores 300 Matter Capacity 300 Sight Range 16 Terrain Scan Range 14 Terrain Scan Density 85 Armor Coverage 150 Power Shielding 66 Propulsion Shielding 66 Evasion (%) 55 Salvage Targeting 1 Offensive Hacking 10 Item Schematics ----------------- None Robot Schematics ------------------ None Fabricated ------------ Nothing Alien Tech Used ----------------- None Achievements -------------- None Challenges ------------ None Game ------ Seed MomentumHeavyGravjet Manual? 0 Play Time 00:34:45 Cumulative 30.6 hours Start 2021.10.08 @ 22:17:39 End 2021.10.08 @ 22:51:40 Sessions 1 Manual Loads 0 Difficulty Rogue Special Mode None Game No. 90 Rogue 90 Adventurer 0 Explorer 0 Win Type - Total 0 Types 0/0/0/0/0/0/0/0/0 Lore% 29 Gallery% 36 Achievement% 25 Wizard Run 0 Options --------- ASCII 1 Keyboard 0 Movement Numpad Keybinds 0 Fullscreen 2 Font 18/TerminusBold Map View 76x50 Tactical HUD 1 Map Filters NONE Filters NONE Steam 1 RUN: c92daa9e-0840-4dc7-aa37-37c789c1d00a